Workbook

Sheet Home (hidden)
E4: Room Booking Form

Sheet Database (hidden)
A1: S.NO | B1: R Card NO | C1: Guest Name | D1: Addres | E1: Country | F1: Company | G1: Arrival | H1: Deparue | I1: Days | J1: Adult | K1: Children | L1: Room | M1: Room Type | N1: Meals | O1: ID type | P1: ID Number | Q1: Reat P.P | R1: Total Charges | S1: Other Charges | T1: Sub Total | U1: Discount | V1: AmountPad | W1: Balance | X1: status | Y1: Notes
A2: =ROW()-1 -> 1 | B2: 01-00002 | C2: Alaa | D2: Egypt | E2: Bahamas, The | F2: Booking,com | G2: 2020-01-01 | H2: 2020-03-01 | I2: 2 | J2: 1 | K2: 3 | L2: 102 Standard Room | M2: Single | N2: B.O | O2: Passport | P2: 123 | Q2: 100 | R2: 200 | S2: 50 | T2: 250 | U2: 20 | V2: 220 | W2: 30 | X2: Check IN
A3: =ROW()-1 -> 2 | B3: 01-00003 | C3: Alaa Mohamed Mohamed Ali | D3: Egypt - Aswan | E3: American Samoa | F3: Booking,com | G3: 2020-06-25 | H3: 2020-06-28 | I3: 3 | J3: 1 | K3: 0 | L3: 104 Standard Room | M3: Double | N3: ALL SOFT | O3: Passport | P3: 123456 | Q3: 100 | R3: 300 | S3: 100 | T3: 400 | U3: 100 | V3: 200 | W3: 100 | X3: Check IN
A4: =ROW()-1 -> 3 | B4: 01-00004 | C4: Ahmed Ali | D4: Egypt | E4: Aland | F4: Booking,com | G4: 2020-06-25 | H4: 2020-06-27 | I4: 2 | J4: 1 | K4: 2 | L4: 114 Deluxe Room | M4: Double | N4: Bed & Brakfast | O4: ID | P4: 1234 | Q4: 100 | R4: 200 | S4: 100 | T4: 300 | U4: 50 | V4: 250 | W4: 0 | X4: Check IN

Sheet Support (hidden)
A1: Room | B1: Meals | C1: status | D1: Room Type | E1: Country | F1: Combany | G1: ID Type
A2: 101 Standard Room | B2: B.O | C2: Reservation | D2: Single | E2: Abkhazia | F2: Booking,com | G2: ID
A3: 102 Standard Room | B3: Bed & Brakfast | C3: Check IN | D3: Double | E3: Afghanistan | G3: Passport
A4: 103 Standard Room | B4: H.B | C4: Check OUT | E4: Akrotiri | G4: Driver License
A5: 104 Standard Room | B5: F.B | E5: Aland
A6: 105 Standard Room | B6: ALL SOFT | E6: Albania
A7: 106 Standard Room | B7: ALL HARD | E7: Algeria
A8: 107 Standard Room | E8: American Samoa
A9: 108 Standard Room | E9: Andorra
A10: 109 Standard Room | E10: Angola
A11: 110 Standard Room | E11: Anguilla
A12: 111 Deluxe Room | E12: Antigua and Barbuda
A13: 112 Deluxe Room | E13: Argentina
A14: 114 Deluxe Room | E14: Armenia
A15: 115 Deluxe Room | E15: Aruba
A16: 116 Deluxe Room | E16: Ascension Island
A17: 117 Deluxe Room | E17: Australia
E18: Austria
E19: Azerbaijan
E20: Bahamas, The
E21: Bahrain
E22: Bangladesh
E23: Barbados
E24: Belarus
E25: Belgium
E26: Belize
E27: Benin
E28: Bermuda
E29: Bhutan
E30: Bolivia
E31: Bosnia and Herzegovina
E32: Botswana
E33: Brazil
E34: Brunei
E35: Bulgaria
E36: Burkina Faso
E37: Burundi

Sheet Sheet1
A1: الايرادات | B1: المصروفات
A2: ايراد نقدى | B2: مصروفات عموميه
A3: تحويل على الحساب | B3: مصروفات صيانه
A4: ايراد ايجارات

Sheet Sheet2
A1: الايرادات | B1: المصروفات
A2: ايراد نقدى | B2: مصروفات عمومية
A3: تحويل على الحساب

Sheet Sheet3

Sheet اليومية
U3: ايراد نقدى
U4: ايراد بشيكات | AD4: ايراد بشيكات | AE4: أجور عمال
A5: حوالات بنكية : | B5: =SUMIF(C11:C1064,"*تحويل*",F11:F1064) -> 7000 | D5: إيـداعـات بـنـكـية : | E5: =SUMIF(C11:C1064,"*ايداع*",F11:F1064) -> 226300 | F5: الرصيد : | G5: =B8-F7-E5-B5 -> 16814 | U5: ايداع شيك | AD5: تحويل للحساب | AE5: مصروفات صيانة
A6: ايرادات نقدية : | B6: =SUMIF(C11:C1064,"*ايراد نقدى*",E11:E1064) -> 191427 | D6: جملة مصروفات الصيانة : | E6: =SUMIF(C11:C1064,"*مصروفات*",F11:F1064) -> 14823 | F6: جمله المصروفات : | U6: ايداع نقدى | AD6: ايراد نقدى | AE6: مصروفات عامة
A7: ايرادات بشيكات : | B7: =SUMIF(C11:C1064,"*ايراد بشيكات*",E11:E1064) -> 80500 | D7: جملة الرواتب المدفوعة : | E7: =SUMIF(C11:C1064,"*صرف رواتب*",F11:F1064) -> 3200 | F7: =SUM(E6:E8) -> 21813 | U7: تحويل للحساب | AE7: خروج مستأجر
A8: جملة الايرادات : | B8: =B6+B7 -> 271927 | D8: تصفيات خروج مستاجرين : | E8: =SUMIF(C12:C1065,"*خروج مستأجر*",F12:F1065) -> 3790 | F8: رصيد مرحل : | G8: 2000 | U8: مصروفات
A9: التاريخ | B9: رقم السند | C9: نوع السند | D9: البيان | E9: العملية | G9: الرصيد
E10: مدين | F10: دائن
A11: 18-9-1434 | B11: 472 | C11: ايراد نقدى | D11: شقة رقم 18 عمارة 1 | E11: 20000 | G11: =IF(AND(E11="",F11=""),"",G8+F11-E11) -> -18000
A12: 18-9-1434 | B12: بدون | C12: مصروفات | D12: كهرباء مصاعد العمارتين | F12: 525 | G12: =IF(AND(E12="",F12=""),"",G11+F12-E12) -> -17475
A13: 20-9-1434 | B13: 473 | C13: ايراد نقدى | D13: شقة رقم 18 عمارة 2 | E13: 777 | G13: =IF(AND(E13="",F13=""),"",G12+F13-E13) -> -18252
A14: 20-9-1434 | B14: 474 | C14: ايراد نقدى | D14: شقة رقم 14 عمارة 2 | E14: 17500 | G14: =IF(AND(E14="",F14=""),"",G13+F14-E14) -> -35752
A15: 22-9-1434 | B15: 267 | C15: مصروفات | D15: ف كهرباء شراء لمبات | F15: 60 | G15: -35692
A16: 25-9-1434 | B16: 463 | C16: خروج مستأجر | D16: تصفية حساب شقة 16 ع 2 | F16: 1300 | G16: -34392
A17: 25-9-1434 | B17: 477 | C17: ايراد نقدى | D17: شقة رقم 5 عمارة 1 | E17: 17000 | G17: -51392
A18: 25-9-1434 | B18: 476 | C18: ايراد بشيكات | D18: شقة رقم 10 عمارة 1 | E18: 17500 | G18: -68892
A19: 25-9-1434 | B19: بدون | C19: ايداع شيك | D19: شقة رقم 10 عمارة1 رقم 50002 | F19: 17500 | G19: -51392
A20: 25-9-1434 | B20: 464 | C20: مصروفات | D20: مصروفات شغل يد + سباكة وكهرباء | F20: 265 | G20: -51127
A21: 25-9-1434 | B21: 3358 | C21: مصروفات | D21: رول دهان | F21: 15 | G21: -51112
A22: 25-9-1434 | B22: 3357 | C22: مصروفات | D22: مواد دهان | F22: 339 | G22: -50773
A23: 25-9-1434 | B23: 465 | C23: خروج مستأجر | D23: تصفية تأمين شقة 15 ع 2 | F23: 1290 | G23: -49483
A24: 27-9-1434 | B24: بدون | C24: ايداع نقدى | D24: دفعة من الايجارات على حسابكم بالراجحى | F24: 40000 | G24: -9483
A25: 5-10-1434 | B25: 481 | C25: ايراد نقدى | D25: ايجار شقة رقم 20 ع 2 مدة 53 يوم | E25: 5000 | G25: -14483
A26: 5-10-1434 | B26: 480 | C26: ايراد نقدى | D26: غرفة مبنى رقم 2 | E26: 1600 | G26: -16083
A27: 5-10-1434 | B27: 478 | C27: ايراد نقدى | D27: ايجار شقة رقم 15 ع رقم 2 | E27: 17500 | G27: -33583
A28: 5-10-1434 | B28: 479 | C28: ايراد نقدى | D28: تأمين شقة رقم 15 ع رقم 2 | E28: 2000 | G28: -35583
A29: 5-10-1434 | B29: 467 | C29: صرف رواتب | D29: راتب س عن شهر رمضان | F29: 800 | G29: -34783
A30: 5-10-1434 | B30: 466 | C30: صرف رواتب | D30: راتب ص عن شهر رمضان | F30: 800 | G30: -33983
A31: 5-10-1434 | B31: 468 | C31: تحويل للحساب | D31: حوالتين 6 الف + الف من شقة رقم 15 ع 2 | F31: 7000 | G31: -26983
A32: 5-10-1434 | B32: 469 | C32: مصروفات | D32: شفط البيارة عمارة رقم 1 شهر رمضان / يوليو | F32: 1400 | G32: -25583
A33: 5-10-1434 | B33: 470 | C33: مصروفات | D33: شفط البيارة عمارة رقم 2 شهر رمضان / يوليو | F33: 640 | G33: -24943
A34: 7-10-1434 | B34: 483 | C34: ايراد نقدى | D34: شقة رقم 11 الدور 3 مبنى رقم 2 | E34: 8750 | G34: -33693
A35: 7-10-1434 | B35: 482 | C35: ايراد نقدى | D35: شقة رقم 20 الدور 6 مبنى رقم 1 | E35: 17000 | G35: -50693
A36: 7-10-1434 | B36: 3400 | C36: مصروفات | D36: ف دهانات الجزيرة | F36: 1030 | G36: -49663
A37: 7-10-1434 | B37: 6717 | C37: مصروفات | D37: مؤسسه باغلف كالونات | F37: 75 | G37: -49588
A38: 7-10-1434 | B38: 6754 | C38: مصروفات | D38: مؤسسه باغلف جبس + فرشة | F38: 20 | G38: -49568
A39: 7-10-1434 | B39: 472 | C39: مصروفات | D39: دهان شقة رقم 16 + 17 عمارة رقم 2 | F39: 1600 | G39: -47968
A40: 7-10-1434 | B40: 471 | C40: مصروفات | D40: تصليح ودهان الباب شقة 16 عمارة رقم 2 | F40: 365 | G40: -47603
A41: 7-10-1434 | B41: 6786 | C41: مصروفات | D41: رول + شكرتون عمارة 2 | F41: 19 | G41: -47584
A42: 7-10-1434 | B42: 474 | C42: مصروفات | D42: شغل بلاط + شغل كهرباء ع ( 2 ) | F42: 120 | G42: -47464
A43: 12-10-1434 | B43: 484 | C43: ايراد بشيكات | D43: تأمين شقة رقم 18 ع رقم 2 | E43: 2000 | G43: -49464
A44: 12-10-1434 | B44: 485 | C44: ايراد بشيكات | D44: ايجار شقة رقم 18 ع رقم 2 | E44: 20000 | G44: -69464
A45: 12-10-1434 | B45: بدون | C45: ايداع شيك | D45: ايداع شيك رقم 231 ايجار وتأمين شقة رقم 18 ع رقم 2 | F45: 22000 | G45: -47464
A46: 12-10-1434 | B46: بدون | C46: ايداع نقدى | D46: دفعة من الايجارات على حسابكم بالراجحى | F46: 42000 | G46: -5464
A47: 12-10-1434 | B47: 4921 | C47: مصروفات | D47: تسليك قاعدة حمام بالاسمنت ع 2 شقة 5 | F47: 50 | G47: -5414
A48: 16-10-1434 | B48: 196 | C48: ايراد نقدى | D48: ايجار شقة رقم 8 ع رقم 2 لمدة 3 شهور سند قديم تكملة الايجار | E48: 8500 | G48: -13914
A49: 22-10-1434 | B49: 487 | C49: ايراد بشيكات | D49: ايجار شقة رقم 1 ع رقم 1 شيك رقم 11 الراجحى | E49: 17500 | G49: -31414
A50: 22-10-1434 | B50: 489 | C50: ايراد نقدى | D50: ايجار شقة رقم 12 ع رقم 2 لمدة 75 يوم | E50: 7000 | G50: -38414
A51: 25-10-1434 | B51: 490 | C51: ايراد نقدى | D51: ايجار غرفة بعمارة 2 | E51: 1600 | G51: -40014
A52: 25-10-1434 | B52: بدون | C52: مصروفات | D52: فواتير الكهرباء 3 شقق + مصاعد | F52: 922 | G52: -39092
A53: 26-10-1434 | B53: بدون | C53: ايداع شيك | D53: ايجار شقة رقم 1 ع رقم 1 شيك رقم 11 الراجحى | F53: 17500 | G53: -21592
A54: 26-10-1434 | B54: بدون | C54: ايداع نقدى | D54: دفعة من الايجارات على حسابكم بالراجحى | F54: 20000 | G54: -1592
A55: 27-10-1434 | B55: 491 | C55: ايراد نقدى | D55: تامين شقة رقم 16 عمارة رقم 2 | E55: 2000 | G55: -3592
A56: 27-10-1434 | B56: 492 | C56: ايراد نقدى | D56: ايجار شقة رقم 16 عمارة رقم 2 | E56: 17500 | G56: -21092
A57: 27-10-1434 | B57: بدون | C57: مصروفات | D57: فاتورة مياه عمارة 1 | F57: 1097 | G57: -19995
A58: 28-10-1434 | B58: 879 | C58: مصروفات | D58: تجديد اقامة س+ رسوم بريد | F58: 450 | G58: -19545
A59: 2-11-1434 | B59: 252 | C59: مصروفات | D59: اصلاح مكيف + غسيل غرفة نواز عمارة 1 | F59: 150 | G59: -19395
A60: 2-11-1434 | B60: 475 | C60: صرف رواتب | D60: راتب شهر شوال 1434 هـ ن | F60: 800 | G60: -18595
A61: 2-11-1434 | B61: 476 | C61: صرف رواتب | D61: راتب شهر شوال 1434 هـ س | F61: 800 | G61: -17795
A62: 2-11-1434 | B62: 477 | C62: مصروفات | D62: سند اصلاح بانيو + كرسى حمام + سيلكون شقة 20 عمارة 2 | F62: 256 | G62: -17539
A63: 7-11-1434 | B63: 493 | C63: ايراد نقدى | D63: ايجار شقة رقم 19 عمارة رقم 2 | E63: 17000 | G63: -34539
A64: 7-11-1434 | B64: 478 | C64: مصروفات | D64: شفط البيارة عمارة رقم 2 شهر اغسطس | F64: 800 | G64: -33739
A65: 7-11-1434 | B65: 479 | C65: مصروفات | D65: شفط البيارة عمارة رقم1 شهر اغسطس | F65: 1400 | G65: -32339
A66: 10-11-1434 | B66: 3642 | C66: مصروفات | D66: فاتورة الجزيرة للدهان 2 | F66: 975 | G66: -31364
A67: 10-11-1434 | B67: 480 | C67: مصروفات | D67: اصلاح مكيف شقة 8 عمارة 2 + دهان شقة 20 عمارة 2 كاملة + مجلس شقة 4 عمارة 1 | F67: 1050 | G67: -30314
A68: 10-11-1434 | B68: 494 | C68: ايراد نقدى | D68: ايجار شقة 6 عمارة 2 | E68: 17500 | G68: -47814
A69: 10-11-1434 | B69: 495 | C69: ايراد بشيكات | D69: ايجار شقة 2 عمارة 2 شيك رقم 101 | E69: 17500 | G69: -65314
A70: 10-11-1434 | B70: بدون | C70: ايداع نقدى | D70: دفعة من الايجارات على حسابكم بالراجحى | F70: 49800 | G70: -15514
A71: 10-11-1434 | B71: بدون | C71: ايداع شيك | D71: شيك رقم 101 عن شقة رقم 2 عمارة رقم 2 | F71: 17500 | G71: 1986
A72: 1435/06/07 | B72: 5555 | C72: تحويل للحساب | D72: تحويل بنكي (الراجحي) ايجار الشقة رقم 66 | E72: 30000 | G72: -28014
A73: 1435/06/07 | B73: 3232 | C73: أجور عمال | D73: راتب العامل 0س) عن شهر ربيع ثان | F73: 2000 | G73: -26014
A74: 1435/06/07 | B74: 5555 | C74: ايراد بشيكات | D74: ايجار الشقة رقم 7 بشيك رقم 43 البنك الاهلي التجاري | E74: 6000 | G74: -32014
A75: 1435/06/07 | B75: 4343 | C75: مصروفات صيانة | D75: صيانة الاسانسير | F75: 1200 | G75: -30814
A76: 1435/06/07 | B76: 666 | C76: ايراد نقدى | D76: ايجار الشقة رقم 9 مستحق عن شهر جماد أول | E76: 7200 | G76: -38014
A77: 1435/06/07 | B77: 444 | C77: ايراد نقدى | D77: ايجار الشقة رقم 13 عن شهر جماد اول | E77: 6000 | G77: -44014
A78: 1435/06/07 | B78: 6666 | C78: خروج مستأجر | D78: تصفية حساب مستاجر الشقة رقم 27 نقدا | F78: 1200 | G78: =IF(AND(E78="",F78=""),"",G77+F78-E78) -> -42814
G142: =IF(AND(E142="",F142=""),"",G141+F142-E142) -> 
G206: =IF(AND(E206="",F206=""),"",G205+F206-E206) -> 
G270: =IF(AND(E270="",F270=""),"",G269+F270-E270) -> 
G334: =IF(AND(E334="",F334=""),"",G333+F334-E334) -> 
G398: =IF(AND(E398="",F398=""),"",G397+F398-E398) -> 
G462: =IF(AND(E462="",F462=""),"",G461+F462-E462) -> 
G526: =IF(AND(E526="",F526=""),"",G525+F526-E526) -> 
G590: =IF(AND(E590="",F590=""),"",G589+F590-E590) -> 
G654: =IF(AND(E654="",F654=""),"",G653+F654-E654) -> 
G718: =IF(AND(E718="",F718=""),"",G717+F718-E718) -> 
G782: =IF(AND(E782="",F782=""),"",G781+F782-E782) -> 
G846: =IF(AND(E846="",F846=""),"",G845+F846-E846) -> 
G910: =IF(AND(E910="",F910=""),"",G909+F910-E910) -> 
G974: =IF(AND(E974="",F974=""),"",G973+F974-E974) -> 
G1038: =IF(AND(E1038="",F1038=""),"",G1037+F1038-E1038) -> 

Sheet Rep3
F1: التاريخ :- | G1: =TODAY() -> 2020-06-27
A4: مسلسل | B4: التاريخ | C4: رقم السند | D4: نوع السند | E4: البيان | F4: مدين | G4: دائن
A5: =TEXT(IF($B5="","",ROW()-5),"00") -> 00 | B5: 2013-12-02 | C5: 250 | D5: نقدي | F5: 1500.555

Sheet reb4
F1: التاريخ :- | G1: =TODAY() -> 2020-06-27
A4: مسلسل | B4: التاريخ | C4: رقم السند | D4: نوع السند | E4: البيان | F4: مدين | G4: دائن
A5: =TEXT(IF($B5="","",ROW()-5),"00") -> 00 | B5: 2013-12-02 | C5: 250 | D5: نقدي | F5: 1500.555
